[Event "Titled Tuesday Blitz July 18 Early 2023"]
[White "Chemin, Justo Reinaldo"]
[Black "Delorme, Axel"]
[WhiteFideId "2101580"]
[BlackFideId "632023"]
[WhiteElo "2246"]
[BlackElo "2433"]
[Result "1-0"]
[Round "3"]
[TimeControl "180+2"]
[Date "2023.07.18"]
[WhiteClock "0:00:09"]
[BlackClock "0:00:04"]
[Board "185"]

1. e4 {[%clk 0:03:00]}  c5 {[%clk 0:02:58]} 2. Nf3 {[%clk 0:03:00]}  d6 {[%clk 0:02:58]} 3. d4 {[%clk 0:03:00]}  cxd4 {[%clk 0:02:59]} 4. Nxd4 {[%clk 0:03:00]}  Nf6 {[%clk 0:03:00]} 5. Nc3 {[%clk 0:03:00]}  a6 {[%clk 0:03:01]} 6. Bg5 {[%clk 0:03:00]}  Nbd7 {[%clk 0:03:00]} 7. Qd2 {[%clk 0:02:58]}  Qc7 {[%clk 0:02:52]} 8. f4 {[%clk 0:02:54]}  e6 {[%clk 0:02:50]} 9. O-O-O {[%clk 0:02:53]}  h6 {[%clk 0:02:45]} 10. Bh4 {[%clk 0:02:50]}  b5 {[%clk 0:02:41]} 11. a3 {[%clk 0:02:28]}  Bb7 {[%clk 0:02:39]} 12. Bd3 {[%clk 0:02:23]}  Be7 {[%clk 0:02:39]} 13. h3 {[%clk 0:02:16]}  Nxe4 {[%clk 0:02:26]} 14. Bxe4 {[%clk 0:02:02]}  Bxh4 {[%clk 0:01:58]} 15. Ndxb5 {[%clk 0:02:01]}  axb5 {[%clk 0:01:53]} 16. Nxb5 {[%clk 0:02:00]}  Qb6 {[%clk 0:01:36]} 17. Nxd6+ {[%clk 0:01:59]}  Ke7 {[%clk 0:01:22]} 18. Nxb7 {[%clk 0:01:44]}  Nf6 {[%clk 0:01:11]} 19. Bf3 {[%clk 0:01:34]}  Rhb8 {[%clk 0:00:53]} 20. Qd6+ {[%clk 0:01:22]}  Qxd6 {[%clk 0:00:52]} 21. Nxd6 {[%clk 0:01:23]}  Ra6 {[%clk 0:00:44]} 22. Nc4 {[%clk 0:01:20]}  Bg3 {[%clk 0:00:41]} 23. Rd4 {[%clk 0:01:04]}  Ra4 {[%clk 0:00:30]} 24. Rhd1 {[%clk 0:01:00]}  Nd5 {[%clk 0:00:24]} 25. Bxd5 {[%clk 0:00:57]}  exd5 {[%clk 0:00:23]} 26. b3 {[%clk 0:00:50]}  Ra7 {[%clk 0:00:10]} 27. Rxd5 {[%clk 0:00:48]}  Bxf4+ {[%clk 0:00:11]} 28. Kb2 {[%clk 0:00:48]}  g5 {[%clk 0:00:10]} 29. b4 {[%clk 0:00:39]}  Rc7 {[%clk 0:00:09]} 30. Na5 {[%clk 0:00:38]}  Rbc8 {[%clk 0:00:09]} 31. c4 {[%clk 0:00:35]}  h5 {[%clk 0:00:10]} 32. b5 {[%clk 0:00:32]}  h4 {[%clk 0:00:10]} 33. b6 {[%clk 0:00:31]}  Rc5 {[%clk 0:00:07]} 34. Rxc5 {[%clk 0:00:29]}  Rxc5 {[%clk 0:00:07]} 35. Nb3 {[%clk 0:00:24]}  Rxc4 {[%clk 0:00:06]} 36. Rd5 {[%clk 0:00:21]}  Rc6 {[%clk 0:00:06]} 37. Rb5 {[%clk 0:00:17]}  Ke6 {[%clk 0:00:06]} 38. a4 {[%clk 0:00:17]}  Be5+ {[%clk 0:00:06]} 39. Ka3 {[%clk 0:00:15]}  Bd6+ {[%clk 0:00:04]} 40. Kb2 {[%clk 0:00:13]}  Be5+ {[%clk 0:00:04]} 41. Kb1 {[%clk 0:00:14]}  f5 {[%clk 0:00:04]} 42. a5 {[%clk 0:00:14]}  g4 {[%clk 0:00:04]} 43. a6 {[%clk 0:00:11]}  gxh3 {[%clk 0:00:04]} 44. gxh3 {[%clk 0:00:10]}  f4 {[%clk 0:00:04]} 45. a7 {[%clk 0:00:10]}  f3 {[%clk 0:00:04]} 46. a8=Q {[%clk 0:00:09]}  f2 {[%clk 0:00:04]} 47. Qxc6+ {[%clk 0:00:09]}  Kf5 {[%clk 0:00:04]} 48. Qf3+ {[%clk 0:00:09]} 1-0


[Site "https://www.chess.com"]

[Event "Titled Tuesday Blitz July 18 Early 2023"]
[White "Sarkar, Justin"]
[Black "luksona14"]
[WhiteFideId "2010011"]
[WhiteElo "2236"]
[BlackElo "2401"]
[Result "0-1"]
[Round "3"]
[TimeControl "180+2"]
[Date "2023.07.18"]
[WhiteClock "0:00:00"]
[BlackClock "0:01:55"]
[Board "186"]

1. e4 {[%clk 0:02:52]}  c5 {[%clk 0:02:59]} 2. Nf3 {[%clk 0:02:51]}  Nc6 {[%clk 0:03:00]} 3. d4 {[%clk 0:02:51]}  cxd4 {[%clk 0:03:01]} 4. Nxd4 {[%clk 0:02:51]}  Nf6 {[%clk 0:03:01]} 5. Nc3 {[%clk 0:02:50]}  e5 {[%clk 0:03:01]} 6. Ndb5 {[%clk 0:02:50]}  d6 {[%clk 0:03:02]} 7. Bg5 {[%clk 0:02:50]}  a6 {[%clk 0:03:01]} 8. Na3 {[%clk 0:02:49]}  b5 {[%clk 0:03:01]} 9. Nd5 {[%clk 0:02:49]}  Be7 {[%clk 0:03:02]} 10. Bxf6 {[%clk 0:02:48]}  Bxf6 {[%clk 0:03:02]} 11. c4 {[%clk 0:02:48]}  b4 {[%clk 0:03:02]} 12. Nc2 {[%clk 0:02:48]}  a5 {[%clk 0:03:02]} 13. g3 {[%clk 0:02:33]}  O-O {[%clk 0:02:58]} 14. Bg2 {[%clk 0:02:33]}  Be6 {[%clk 0:02:56]} 15. O-O {[%clk 0:02:31]}  Bg5 {[%clk 0:02:56]} 16. f4 {[%clk 0:02:19]}  Bh6 {[%clk 0:02:55]} 17. f5 {[%clk 0:02:05]}  Bxd5 {[%clk 0:02:55]} 18. Qxd5 {[%clk 0:02:01]}  Qb6+ {[%clk 0:02:55]} 19. Kh1 {[%clk 0:01:59]}  Rad8 {[%clk 0:02:54]} 20. Rad1 {[%clk 0:01:44]}  a4 {[%clk 0:02:25]} 21. Qb5 {[%clk 0:01:25]}  Qxb5 {[%clk 0:02:25]} 22. cxb5 {[%clk 0:01:25]}  Na7 {[%clk 0:02:25]} 23. Rd5 {[%clk 0:00:53]}  Rb8 {[%clk 0:02:20]} 24. Nxb4 {[%clk 0:00:48]}  Rxb5 {[%clk 0:02:20]} 25. Rxb5 {[%clk 0:00:22]}  Nxb5 {[%clk 0:02:21]} 26. Rd1 {[%clk 0:00:22]}  Rc8 {[%clk 0:02:05]} 27. Bf1 {[%clk 0:00:18]}  Nd4 {[%clk 0:02:04]} 28. Kg2 {[%clk 0:00:15]}  Bc1 {[%clk 0:02:01]} 29. Nd5 {[%clk 0:00:12]}  Kf8 {[%clk 0:01:57]} 30. Bd3 {[%clk 0:00:05]}  Bxb2 {[%clk 0:01:56]} 31. Rb1 {[%clk 0:00:05]}  a3 {[%clk 0:01:56]} 32. Kf2 {[%clk 0:00:04]}  g6 {[%clk 0:01:57]} 33. f6 {[%clk 0:00:02]}  Ke8 {[%clk 0:01:55]} 34. Ke3 {[%clk 0:00:00]}  Kd7 {[%clk 0:01:55]} 0-1


[Site "https://www.chess.com"]

[Event "Titled Tuesday Blitz July 18 Early 2023"]
[White "laimis61"]
[Black "Manukian, Artak"]
[BlackFideId "13301373"]
[WhiteElo "2236"]
[BlackElo "2400"]
[Result "0-1"]
[Round "3"]
[TimeControl "180+2"]
[Date "2023.07.18"]
[WhiteClock "0:00:00"]
[BlackClock "0:00:06"]
[Board "187"]

1. e4 {[%clk 0:03:00]}  c6 {[%clk 0:02:58]} 2. d4 {[%clk 0:02:59]}  d5 {[%clk 0:02:56]} 3. exd5 {[%clk 0:02:59]}  cxd5 {[%clk 0:02:56]} 4. Bd3 {[%clk 0:02:59]}  Nc6 {[%clk 0:02:55]} 5. c3 {[%clk 0:02:59]}  e5 {[%clk 0:02:51]} 6. dxe5 {[%clk 0:02:55]}  Nxe5 {[%clk 0:02:50]} 7. Qe2 {[%clk 0:02:55]}  Qe7 {[%clk 0:02:45]} 8. Bb5+ {[%clk 0:02:49]}  Nc6 {[%clk 0:02:44]} 9. Be3 {[%clk 0:02:46]}  Nf6 {[%clk 0:02:39]} 10. Nf3 {[%clk 0:02:45]}  Bg4 {[%clk 0:02:34]} 11. O-O {[%clk 0:02:44]}  Ne4 {[%clk 0:02:16]} 12. Re1 {[%clk 0:02:40]}  f5 {[%clk 0:02:13]} 13. Nbd2 {[%clk 0:02:33]}  O-O-O {[%clk 0:01:57]} 14. Qd3 {[%clk 0:02:27]}  Qc7 {[%clk 0:01:45]} 15. Ng5 {[%clk 0:02:15]}  f4 {[%clk 0:01:34]} 16. Ndxe4 {[%clk 0:02:04]}  fxe3 {[%clk 0:01:27]} 17. Qxe3 {[%clk 0:01:07]}  dxe4 {[%clk 0:01:19]} 18. Nxe4 {[%clk 0:01:01]}  Re8 {[%clk 0:01:10]} 19. Qg5 {[%clk 0:00:34]}  Bd7 {[%clk 0:01:03]} 20. Rad1 {[%clk 0:00:30]}  h6 {[%clk 0:00:41]} 21. Qg6 {[%clk 0:00:28]}  Re6 {[%clk 0:00:36]} 22. Qf7 {[%clk 0:00:21]}  Re7 {[%clk 0:00:28]} 23. Qg6 {[%clk 0:00:19]}  Re6 {[%clk 0:00:20]} 24. Qf7 {[%clk 0:00:18]}  a6 {[%clk 0:00:16]} 25. Bc4 {[%clk 0:00:15]}  Re7 {[%clk 0:00:12]} 26. Qf3 {[%clk 0:00:10]}  Ne5 {[%clk 0:00:09]} 27. Nd6+ {[%clk 0:00:04]}  Qxd6 {[%clk 0:00:09]} 28. Rxe5 {[%clk 0:00:03]}  Qxe5 {[%clk 0:00:07]} 29. h3 {[%clk 0:00:00]}  Bc6 {[%clk 0:00:06]} 0-1


[Site "https://www.chess.com"]

[Event "Titled Tuesday Blitz July 18 Early 2023"]
[White "Silva Lucena, Cristian"]
[Black "Kev4444444444"]
[WhiteFideId "2232588"]
[WhiteElo "2399"]
[BlackElo "2230"]
[Result "1-0"]
[Round "3"]
[TimeControl "180+2"]
[Date "2023.07.18"]
[WhiteClock "0:00:19"]
[BlackClock "0:00:11"]
[Board "189"]

1. e4 {[%clk 0:03:00]}  e5 {[%clk 0:02:53]} 2. Nf3 {[%clk 0:03:01]}  d6 {[%clk 0:02:52]} 3. d4 {[%clk 0:03:00]}  Nf6 {[%clk 0:02:52]} 4. dxe5 {[%clk 0:02:59]}  Nxe4 {[%clk 0:02:50]} 5. Bc4 {[%clk 0:03:00]}  Be7 {[%clk 0:02:31]} 6. Bxf7+ {[%clk 0:02:58]}  Kxf7 {[%clk 0:02:28]} 7. Qd5+ {[%clk 0:02:58]}  Be6 {[%clk 0:02:23]} 8. Qxe4 {[%clk 0:02:59]}  Nd7 {[%clk 0:01:43]} 9. exd6 {[%clk 0:02:55]}  cxd6 {[%clk 0:01:40]} 10. O-O {[%clk 0:02:52]}  h6 {[%clk 0:01:35]} 11. Re1 {[%clk 0:02:50]}  Nc5 {[%clk 0:01:32]} 12. Qf4+ {[%clk 0:02:48]}  Bf6 {[%clk 0:01:32]} 13. Nd4 {[%clk 0:02:45]}  Re8 {[%clk 0:01:27]} 14. Nxe6 {[%clk 0:02:45]}  Nxe6 {[%clk 0:01:26]} 15. Qg4 {[%clk 0:02:34]}  Rc8 {[%clk 0:01:23]} 16. Nc3 {[%clk 0:02:33]}  Nd4 {[%clk 0:01:11]} 17. Rxe8 {[%clk 0:02:24]}  Qxe8 {[%clk 0:01:11]} 18. Bf4 {[%clk 0:02:18]}  Nxc2 {[%clk 0:01:07]} 19. Rd1 {[%clk 0:02:17]}  Nd4 {[%clk 0:01:06]} 20. Bxd6 {[%clk 0:02:06]}  Rd8 {[%clk 0:01:06]} 21. Qh5+ {[%clk 0:01:59]}  g6 {[%clk 0:01:05]} 22. Qd5+ {[%clk 0:01:52]}  Kg7 {[%clk 0:01:05]} 23. Qxb7+ {[%clk 0:01:40]}  Rd7 {[%clk 0:01:03]} 24. Qb4 {[%clk 0:01:40]}  Nf5 {[%clk 0:00:47]} 25. Bf4 {[%clk 0:01:34]}  Rxd1+ {[%clk 0:00:41]} 26. Nxd1 {[%clk 0:01:35]}  Qe2 {[%clk 0:00:41]} 27. Qd2 {[%clk 0:01:27]}  Qb5 {[%clk 0:00:41]} 28. b3 {[%clk 0:01:25]}  g5 {[%clk 0:00:40]} 29. Bg3 {[%clk 0:01:22]}  Nd4 {[%clk 0:00:39]} 30. h3 {[%clk 0:01:17]}  Ne2+ {[%clk 0:00:35]} 31. Kh2 {[%clk 0:01:17]}  Nxg3 {[%clk 0:00:32]} 32. fxg3 {[%clk 0:01:18]}  Qb6 {[%clk 0:00:31]} 33. Ne3 {[%clk 0:01:16]}  Qc5 {[%clk 0:00:29]} 34. Qd3 {[%clk 0:01:14]}  Be5 {[%clk 0:00:23]} 35. Qd7+ {[%clk 0:01:11]}  Kg6 {[%clk 0:00:19]} 36. Qe6+ {[%clk 0:01:07]}  Kg7 {[%clk 0:00:20]} 37. Nf5+ {[%clk 0:01:06]}  Kf8 {[%clk 0:00:17]} 38. Qxh6+ {[%clk 0:01:06]}  Ke8 {[%clk 0:00:17]} 39. Qe6+ {[%clk 0:01:03]}  Kd8 {[%clk 0:00:18]} 40. Qg8+ {[%clk 0:00:59]}  Kc7 {[%clk 0:00:18]} 41. Qxg5 {[%clk 0:00:57]}  Kb6 {[%clk 0:00:18]} 42. h4 {[%clk 0:00:54]}  Qc3 {[%clk 0:00:18]} 43. h5 {[%clk 0:00:53]}  Bf6 {[%clk 0:00:14]} 44. Qg6 {[%clk 0:00:52]}  Qe5 {[%clk 0:00:15]} 45. h6 {[%clk 0:00:47]}  Kb5 {[%clk 0:00:15]} 46. h7 {[%clk 0:00:47]}  Kb4 {[%clk 0:00:15]} 47. Qg4+ {[%clk 0:00:46]}  Ka3 {[%clk 0:00:16]} 48. Nh4 {[%clk 0:00:47]}  Qe7 {[%clk 0:00:13]} 49. Qa4+ {[%clk 0:00:29]}  Kb2 {[%clk 0:00:13]} 50. b4 {[%clk 0:00:19]}  Qxh7 {[%clk 0:00:12]} 51. Qb3+ {[%clk 0:00:18]}  Ka1 {[%clk 0:00:13]} 52. Kh3 {[%clk 0:00:16]}  Qd7+ {[%clk 0:00:12]} 53. g4 {[%clk 0:00:16]}  Qh7 {[%clk 0:00:11]} 54. g3 {[%clk 0:00:14]}  Qe4 {[%clk 0:00:09]} 55. Qd1+ {[%clk 0:00:13]}  Kxa2 {[%clk 0:00:07]} 56. Qd2+ {[%clk 0:00:13]}  Ka3 {[%clk 0:00:08]} 57. Ng2 {[%clk 0:00:09]}  Bb2 {[%clk 0:00:05]} 58. b5 {[%clk 0:00:08]}  Qh7+ {[%clk 0:00:05]} 59. Nh4 {[%clk 0:00:07]}  Qb7 {[%clk 0:00:06]} 60. Qa5+ {[%clk 0:00:07]}  Kb3 {[%clk 0:00:06]} 61. Ng2 {[%clk 0:00:08]}  Qh7+ {[%clk 0:00:05]} 62. Nh4 {[%clk 0:00:08]}  Qb7 {[%clk 0:00:05]} 63. Qe1 {[%clk 0:00:08]}  Bc3 {[%clk 0:00:06]} 64. Qe6+ {[%clk 0:00:08]}  Kb4 {[%clk 0:00:06]} 65. Ng2 {[%clk 0:00:07]}  Qh7+ {[%clk 0:00:05]} 66. Nh4 {[%clk 0:00:08]}  Qb7 {[%clk 0:00:05]} 67. Qd6+ {[%clk 0:00:08]}  Kxb5 {[%clk 0:00:05]} 68. Qd3+ {[%clk 0:00:08]}  Kb4 {[%clk 0:00:05]} 69. Ng2 {[%clk 0:00:08]}  Qg7 {[%clk 0:00:05]} 70. Ne3 {[%clk 0:00:07]}  Qd4 {[%clk 0:00:05]} 71. Qe2 {[%clk 0:00:06]}  Qe4 {[%clk 0:00:05]} 72. Nc2+ {[%clk 0:00:06]}  Qxc2 {[%clk 0:00:01]} 73. Qxc2 {[%clk 0:00:06]}  a5 {[%clk 0:00:02]} 74. g5 {[%clk 0:00:06]}  a4 {[%clk 0:00:03]} 75. Qa2 {[%clk 0:00:07]}  a3 {[%clk 0:00:03]} 76. Kg4 {[%clk 0:00:07]}  Ka4 {[%clk 0:00:03]} 77. Kf5 {[%clk 0:00:08]}  Kb4 {[%clk 0:00:04]} 78. g6 {[%clk 0:00:09]}  Ka4 {[%clk 0:00:04]} 79. g4 {[%clk 0:00:09]}  Kb4 {[%clk 0:00:05]} 80. g5 {[%clk 0:00:10]}  Ka4 {[%clk 0:00:06]} 81. Ke6 {[%clk 0:00:11]}  Kb4 {[%clk 0:00:07]} 82. Kf7 {[%clk 0:00:12]}  Ka4 {[%clk 0:00:07]} 83. g7 {[%clk 0:00:13]}  Bxg7 {[%clk 0:00:08]} 84. Kxg7 {[%clk 0:00:13]}  Kb4 {[%clk 0:00:09]} 85. Kf6 {[%clk 0:00:14]}  Ka4 {[%clk 0:00:09]} 86. g6 {[%clk 0:00:15]}  Kb4 {[%clk 0:00:10]} 87. g7 {[%clk 0:00:16]}  Ka4 {[%clk 0:00:11]} 88. g8=Q {[%clk 0:00:17]}  Kb4 {[%clk 0:00:10]} 89. Qgb3+ {[%clk 0:00:18]}  Kc5 {[%clk 0:00:11]} 90. Qac2+ {[%clk 0:00:19]}  Kd4 {[%clk 0:00:11]} 91. Qbd3# {[%clk 0:00:19]} 1-0


[Site "https://www.chess.com"]

[Event "Titled Tuesday Blitz July 18 Early 2023"]
[White "ajedrez-facil"]
[Black "Garsky, Vladyslav"]
[BlackFideId "34100270"]
[WhiteElo "2223"]
[BlackElo "2394"]
[Result "0-1"]
[Round "3"]
[TimeControl "180+2"]
[Date "2023.07.18"]
[WhiteClock "0:00:40"]
[BlackClock "0:00:53"]
[Board "191"]

1. e4 {[%clk 0:03:00]}  c6 {[%clk 0:03:00]} 2. d4 {[%clk 0:03:00]}  d5 {[%clk 0:03:01]} 3. exd5 {[%clk 0:03:01]}  cxd5 {[%clk 0:03:02]} 4. Bd3 {[%clk 0:03:01]}  Nf6 {[%clk 0:03:02]} 5. Nf3 {[%clk 0:03:01]}  Nc6 {[%clk 0:03:02]} 6. h3 {[%clk 0:03:01]}  g6 {[%clk 0:03:00]} 7. c3 {[%clk 0:03:00]}  Bf5 {[%clk 0:03:00]} 8. Bxf5 {[%clk 0:02:59]}  gxf5 {[%clk 0:03:00]} 9. Bf4 {[%clk 0:02:59]}  e6 {[%clk 0:03:01]} 10. Nbd2 {[%clk 0:02:58]}  Bd6 {[%clk 0:03:01]} 11. Bxd6 {[%clk 0:02:58]}  Qxd6 {[%clk 0:03:02]} 12. Qe2 {[%clk 0:02:58]}  Rg8 {[%clk 0:03:00]} 13. g3 {[%clk 0:02:57]}  Ne4 {[%clk 0:03:00]} 14. h4 {[%clk 0:02:44]}  a6 {[%clk 0:02:55]} 15. Nxe4 {[%clk 0:02:37]}  dxe4 {[%clk 0:02:53]} 16. Nd2 {[%clk 0:02:37]}  b5 {[%clk 0:02:48]} 17. Nb3 {[%clk 0:02:36]}  Ne7 {[%clk 0:02:48]} 18. Nc5 {[%clk 0:02:35]}  Nd5 {[%clk 0:02:48]} 19. a3 {[%clk 0:02:30]}  e3 {[%clk 0:02:44]} 20. Rg1 {[%clk 0:02:11]}  f4 {[%clk 0:02:18]} 21. g4 {[%clk 0:02:05]}  Ke7 {[%clk 0:02:13]} 22. a4 {[%clk 0:02:03]}  b4 {[%clk 0:02:10]} 23. c4 {[%clk 0:02:02]}  Nf6 {[%clk 0:02:06]} 24. fxe3 {[%clk 0:02:02]}  fxe3 {[%clk 0:02:06]} 25. Qxe3 {[%clk 0:01:58]}  Nxg4 {[%clk 0:02:04]} 26. Qe4 {[%clk 0:01:57]}  f5 {[%clk 0:01:52]} 27. Qd3 {[%clk 0:01:49]}  Qf4 {[%clk 0:01:45]} 28. Rf1 {[%clk 0:01:42]}  Qh6 {[%clk 0:01:31]} 29. Kd1 {[%clk 0:01:21]}  Ne3+ {[%clk 0:01:30]} 30. Ke2 {[%clk 0:01:14]}  Rg2+ {[%clk 0:01:27]} 31. Rf2 {[%clk 0:01:15]}  Qh5+ {[%clk 0:01:20]} 32. Kxe3 {[%clk 0:01:14]}  Rg3+ {[%clk 0:01:21]} 33. Kd2 {[%clk 0:01:12]}  Rxd3+ {[%clk 0:01:19]} 34. Kxd3 {[%clk 0:01:13]}  Qxh4 {[%clk 0:01:20]} 35. Re2 {[%clk 0:01:12]}  Rg8 {[%clk 0:01:01]} 36. Rxe6+ {[%clk 0:01:06]}  Kf7 {[%clk 0:01:01]} 37. Rae1 {[%clk 0:01:02]}  Rg3+ {[%clk 0:01:00]} 38. R6e3 {[%clk 0:01:03]}  f4 {[%clk 0:00:59]} 39. Rxg3 {[%clk 0:01:02]}  fxg3 {[%clk 0:01:00]} 40. Rf1+ {[%clk 0:00:54]}  Ke8 {[%clk 0:01:00]} 41. Ne4 {[%clk 0:00:45]}  g2 {[%clk 0:00:58]} 42. Rg1 {[%clk 0:00:44]}  Qh2 {[%clk 0:00:55]} 43. Nd6+ {[%clk 0:00:40]}  Kd7 {[%clk 0:00:53]} 0-1


[Site "https://www.chess.com"]

[Event "Titled Tuesday Blitz July 18 Early 2023"]
[White "Rodriguez Santiago, Jaime"]
[Black "Vila Dupla, Aurelio"]
[WhiteFideId "3100898"]
[BlackFideId "2203383"]
[WhiteElo "2389"]
[BlackElo "2198"]
[Result "0-1"]
[Round "3"]
[TimeControl "180+2"]
[Date "2023.07.18"]
[WhiteClock "0:00:32"]
[BlackClock "0:00:26"]
[Board "194"]

1. c4 {[%clk 0:03:00]}  Nf6 {[%clk 0:02:59]} 2. Nc3 {[%clk 0:02:59]}  d5 {[%clk 0:02:59]} 3. cxd5 {[%clk 0:02:59]}  Nxd5 {[%clk 0:03:00]} 4. g3 {[%clk 0:02:59]}  e5 {[%clk 0:02:59]} 5. Bg2 {[%clk 0:02:59]}  Nb6 {[%clk 0:02:59]} 6. e3 {[%clk 0:02:57]}  Nc6 {[%clk 0:02:59]} 7. Nge2 {[%clk 0:02:58]}  h5 {[%clk 0:02:59]} 8. h3 {[%clk 0:02:53]}  h4 {[%clk 0:02:51]} 9. g4 {[%clk 0:02:52]}  f5 {[%clk 0:02:47]} 10. gxf5 {[%clk 0:02:38]}  Bxf5 {[%clk 0:02:47]} 11. f4 {[%clk 0:02:38]}  Nb4 {[%clk 0:02:39]} 12. e4 {[%clk 0:02:35]}  Be6 {[%clk 0:02:21]} 13. d4 {[%clk 0:02:23]}  Bc4 {[%clk 0:02:17]} 14. O-O {[%clk 0:02:19]}  exd4 {[%clk 0:02:12]} 15. Nxd4 {[%clk 0:02:00]}  Bxf1 {[%clk 0:02:07]} 16. Bxf1 {[%clk 0:02:00]}  Bc5 {[%clk 0:02:06]} 17. Be3 {[%clk 0:01:59]}  Nc6 {[%clk 0:01:47]} 18. Bb5 {[%clk 0:01:48]}  Qf6 {[%clk 0:01:26]} 19. e5 {[%clk 0:01:38]}  Qg6+ {[%clk 0:01:25]} 20. Kh1 {[%clk 0:01:37]}  O-O-O {[%clk 0:01:23]} 21. Bxc6 {[%clk 0:01:26]}  bxc6 {[%clk 0:01:22]} 22. Qc2 {[%clk 0:01:19]}  Qg3 {[%clk 0:01:17]} 23. Qf5+ {[%clk 0:01:04]}  Kb7 {[%clk 0:01:10]} 24. Ne4 {[%clk 0:00:51]}  Qxe3 {[%clk 0:00:48]} 25. Nxc5+ {[%clk 0:00:51]}  Ka8 {[%clk 0:00:45]} 26. Qe6 {[%clk 0:00:48]}  Rd6 {[%clk 0:00:40]} 27. exd6 {[%clk 0:00:47]}  Qxd4 {[%clk 0:00:40]} 28. Rc1 {[%clk 0:00:37]}  Qxf4 {[%clk 0:00:34]} 29. Nd3 {[%clk 0:00:35]}  Qf3+ {[%clk 0:00:32]} 30. Kh2 {[%clk 0:00:34]}  Qxd3 {[%clk 0:00:31]} 31. d7 {[%clk 0:00:35]}  Qd2+ {[%clk 0:00:29]} 32. Kg1 {[%clk 0:00:33]}  Qxc1+ {[%clk 0:00:27]} 33. Kf2 {[%clk 0:00:34]}  Qxb2+ {[%clk 0:00:27]} 34. Kf3 {[%clk 0:00:34]}  Qc3+ {[%clk 0:00:26]} 35. Kg4 {[%clk 0:00:33]}  Qd4+ {[%clk 0:00:26]} 36. Kg5 {[%clk 0:00:33]}  Qxd7 {[%clk 0:00:26]} 37. Qxd7 {[%clk 0:00:32]}  Nxd7 {[%clk 0:00:26]} 0-1


[Site "https://www.chess.com"]

[Event "Titled Tuesday Blitz July 18 Early 2023"]
[White "Hernandez Bermudez, Ulises Eduardo"]
[Black "Topalov, Aleksandar"]
[WhiteFideId "3902510"]
[BlackFideId "925659"]
[WhiteElo "2197"]
[BlackElo "2383"]
[Result "1-0"]
[Round "3"]
[TimeControl "180+2"]
[Date "2023.07.18"]
[WhiteClock "0:00:52"]
[BlackClock "0:00:54"]
[Board "195"]

1. e4 {[%clk 0:03:00]}  e6 {[%clk 0:02:59]} 2. d4 {[%clk 0:03:00]}  d5 {[%clk 0:02:59]} 3. exd5 {[%clk 0:03:01]}  exd5 {[%clk 0:02:59]} 4. c4 {[%clk 0:03:01]}  Nf6 {[%clk 0:02:57]} 5. Nc3 {[%clk 0:03:01]}  Bd6 {[%clk 0:02:56]} 6. cxd5 {[%clk 0:02:59]}  O-O {[%clk 0:02:55]} 7. Bc4 {[%clk 0:02:59]}  h6 {[%clk 0:02:54]} 8. Nge2 {[%clk 0:02:59]}  Nbd7 {[%clk 0:02:54]} 9. Bb3 {[%clk 0:02:58]}  Nb6 {[%clk 0:02:44]} 10. Qd3 {[%clk 0:02:54]}  Bg4 {[%clk 0:02:37]} 11. O-O {[%clk 0:02:51]}  Bh5 {[%clk 0:02:33]} 12. Nf4 {[%clk 0:02:40]}  Bxf4 {[%clk 0:02:30]} 13. Bxf4 {[%clk 0:02:41]}  Bg6 {[%clk 0:02:28]} 14. Qf3 {[%clk 0:02:32]}  a6 {[%clk 0:02:26]} 15. Rad1 {[%clk 0:02:27]}  Re8 {[%clk 0:02:12]} 16. d6 {[%clk 0:02:24]}  c6 {[%clk 0:01:49]} 17. Be5 {[%clk 0:02:20]}  Nfd7 {[%clk 0:01:48]} 18. Rfe1 {[%clk 0:02:17]}  Qg5 {[%clk 0:01:46]} 19. Ne4 {[%clk 0:01:48]}  Nxe5 {[%clk 0:01:26]} 20. dxe5 {[%clk 0:00:56]}  Qxe5 {[%clk 0:01:26]} 21. d7 {[%clk 0:00:54]}  Red8 {[%clk 0:01:09]} 22. Nd6 {[%clk 0:00:53]}  Qf5 {[%clk 0:00:54]} 23. Nxf5 {[%clk 0:00:52]} 1-0


[Site "https://www.chess.com"]

[Event "Titled Tuesday Blitz July 18 Early 2023"]
[White "Mejia, Cherry Ann"]
[Black "Palacio,Igor Da Paz"]
[WhiteFideId "5206880"]
[BlackFideId "2121140"]
[WhiteElo "2369"]
[BlackElo "2157"]
[Result "1-0"]
[Round "3"]
[TimeControl "180+2"]
[Date "2023.07.18"]
[WhiteClock "0:02:01"]
[BlackClock "0:00:00"]
[Board "201"]

1. e4 {[%clk 0:03:00]}  Nf6 {[%clk 0:03:00]} 2. e5 {[%clk 0:03:00]}  Nd5 {[%clk 0:03:00]} 3. c4 {[%clk 0:03:01]}  Nb6 {[%clk 0:02:59]} 4. d4 {[%clk 0:03:02]}  d6 {[%clk 0:03:00]} 5. exd6 {[%clk 0:03:03]}  exd6 {[%clk 0:03:00]} 6. Nc3 {[%clk 0:03:03]}  Be7 {[%clk 0:03:00]} 7. Bd3 {[%clk 0:03:01]}  O-O {[%clk 0:03:00]} 8. Nge2 {[%clk 0:03:01]}  Re8 {[%clk 0:03:00]} 9. O-O {[%clk 0:03:01]}  Bg4 {[%clk 0:02:59]} 10. f3 {[%clk 0:03:00]}  Bh5 {[%clk 0:02:46]} 11. Nf4 {[%clk 0:02:54]}  Bg6 {[%clk 0:02:46]} 12. Nxg6 {[%clk 0:02:54]}  hxg6 {[%clk 0:02:46]} 13. Be3 {[%clk 0:02:51]}  Nc6 {[%clk 0:02:43]} 14. b3 {[%clk 0:02:48]}  Bf6 {[%clk 0:02:38]} 15. Bf2 {[%clk 0:02:29]}  Nxd4 {[%clk 0:02:29]} 16. Bxg6 {[%clk 0:02:28]}  Nxf3+ {[%clk 0:01:36]} 17. Qxf3 {[%clk 0:02:29]}  fxg6 {[%clk 0:01:35]} 18. Rad1 {[%clk 0:02:28]}  Rf8 {[%clk 0:00:52]} 19. Nd5 {[%clk 0:02:26]}  Nxd5 {[%clk 0:00:50]} 20. Qxd5+ {[%clk 0:02:25]}  Kh7 {[%clk 0:00:49]} 21. Rd3 {[%clk 0:02:18]}  g5 {[%clk 0:00:24]} 22. Rh3+ {[%clk 0:02:14]}  Kg6 {[%clk 0:00:22]} 23. Qxb7 {[%clk 0:02:13]}  Re8 {[%clk 0:00:14]} 24. Qd5 {[%clk 0:02:11]}  Re5 {[%clk 0:00:12]} 25. Qd3+ {[%clk 0:02:11]}  Kf7 {[%clk 0:00:12]} 26. Bd4 {[%clk 0:02:11]}  Re6 {[%clk 0:00:09]} 27. Rhf3 {[%clk 0:02:11]}  Qe7 {[%clk 0:00:06]} 28. Bxf6 {[%clk 0:02:03]}  gxf6 {[%clk 0:00:01]} 29. Qh7+ {[%clk 0:02:01]}  Ke8 {[%clk 0:00:00]} 30. Qg8+ {[%clk 0:02:01]} 1-0


[Site "https://www.chess.com"]